[Event "Titled Tuesday Blitz July 4 Late 2023"]
[White "Porat, Tori"]
[Black "Guimaraes, Wagner Peixoto"]
[WhiteFideId "30982626"]
[BlackFideId "2100940"]
[WhiteElo "1996"]
[BlackElo "2258"]
[Result "0-1"]
[Round "4"]
[TimeControl "180+2"]
[Date "2023.07.04"]
[WhiteClock "0:00:11"]
[BlackClock "0:00:08"]
[Board "177"]

1. d4 {[%clk 0:03:00]}  Nf6 {[%clk 0:02:54]} 2. c4 {[%clk 0:03:00]}  c5 {[%clk 0:02:54]} 3. d5 {[%clk 0:02:59]}  e6 {[%clk 0:02:54]} 4. Nc3 {[%clk 0:02:56]}  exd5 {[%clk 0:02:54]} 5. cxd5 {[%clk 0:02:55]}  d6 {[%clk 0:02:54]} 6. Nf3 {[%clk 0:02:55]}  g6 {[%clk 0:02:54]} 7. Bg5 {[%clk 0:02:52]}  Bg7 {[%clk 0:02:54]} 8. e4 {[%clk 0:02:52]}  h6 {[%clk 0:02:53]} 9. Bxf6 {[%clk 0:02:51]}  Bxf6 {[%clk 0:02:52]} 10. Bb5+ {[%clk 0:02:51]}  Nd7 {[%clk 0:02:51]} 11. O-O {[%clk 0:02:50]}  O-O {[%clk 0:02:50]} 12. Qd2 {[%clk 0:02:48]}  Bg7 {[%clk 0:02:50]} 13. Rfe1 {[%clk 0:02:41]}  Re8 {[%clk 0:02:34]} 14. Rac1 {[%clk 0:02:36]}  a6 {[%clk 0:02:34]} 15. Bxd7 {[%clk 0:02:36]}  Bxd7 {[%clk 0:02:34]} 16. Qf4 {[%clk 0:02:34]}  Qe7 {[%clk 0:02:25]} 17. a3 {[%clk 0:02:31]}  b5 {[%clk 0:02:24]} 18. Rc2 {[%clk 0:02:17]}  Rac8 {[%clk 0:02:16]} 19. Rce2 {[%clk 0:02:16]}  b4 {[%clk 0:02:14]} 20. axb4 {[%clk 0:02:13]}  cxb4 {[%clk 0:02:15]} 21. Nd1 {[%clk 0:02:11]}  Bb5 {[%clk 0:02:14]} 22. Re3 {[%clk 0:02:03]}  Rc4 {[%clk 0:01:59]} 23. Nd2 {[%clk 0:01:57]}  Rc2 {[%clk 0:01:45]} 24. Nf3 {[%clk 0:01:57]}  a5 {[%clk 0:01:35]} 25. e5 {[%clk 0:01:51]}  dxe5 {[%clk 0:01:31]} 26. Nxe5 {[%clk 0:01:51]}  Qb7 {[%clk 0:01:13]} 27. d6 {[%clk 0:01:45]}  Bxe5 {[%clk 0:00:51]} 28. Rxe5 {[%clk 0:01:33]}  Rxe5 {[%clk 0:00:47]} 29. Qxe5 {[%clk 0:01:33]}  Rd2 {[%clk 0:00:41]} 30. Qf6 {[%clk 0:01:25]}  Qd7 {[%clk 0:00:33]} 31. Qe5 {[%clk 0:01:04]}  Rxd6 {[%clk 0:00:29]} 32. Ne3 {[%clk 0:00:57]}  Re6 {[%clk 0:00:26]} 33. Qb8+ {[%clk 0:00:57]}  Re8 {[%clk 0:00:26]} 34. Qf4 {[%clk 0:00:56]}  Kg7 {[%clk 0:00:20]} 35. h3 {[%clk 0:00:55]}  Qe6 {[%clk 0:00:18]} 36. Rd1 {[%clk 0:00:52]}  Bc6 {[%clk 0:00:15]} 37. Ng4 {[%clk 0:00:51]}  g5 {[%clk 0:00:13]} 38. Qd4+ {[%clk 0:00:50]}  f6 {[%clk 0:00:13]} 39. Qa7+ {[%clk 0:00:50]}  Re7 {[%clk 0:00:13]} 40. Qd4 {[%clk 0:00:46]}  h5 {[%clk 0:00:12]} 41. Ne3 {[%clk 0:00:43]}  Qe4 {[%clk 0:00:12]} 42. Qxe4 {[%clk 0:00:42]}  Bxe4 {[%clk 0:00:12]} 43. f3 {[%clk 0:00:40]}  Bg6 {[%clk 0:00:12]} 44. Rd5 {[%clk 0:00:39]}  Ra7 {[%clk 0:00:12]} 45. Rb5 {[%clk 0:00:38]}  h4 {[%clk 0:00:09]} 46. Rb6 {[%clk 0:00:34]}  Re7 {[%clk 0:00:08]} 47. Nd5 {[%clk 0:00:34]}  Re1+ {[%clk 0:00:08]} 48. Kh2 {[%clk 0:00:32]}  Rb1 {[%clk 0:00:09]} 49. Nxf6 {[%clk 0:00:32]}  Rxb2 {[%clk 0:00:09]} 50. Ng4 {[%clk 0:00:31]}  a4 {[%clk 0:00:08]} 51. Rb7+ {[%clk 0:00:31]}  Kg8 {[%clk 0:00:08]} 52. Rb8+ {[%clk 0:00:31]}  Kf7 {[%clk 0:00:08]} 53. Rb7+ {[%clk 0:00:31]}  Ke8 {[%clk 0:00:08]} 54. Rb8+ {[%clk 0:00:31]}  Kd7 {[%clk 0:00:08]} 55. Ne5+ {[%clk 0:00:31]}  Ke6 {[%clk 0:00:08]} 56. Nxg6 {[%clk 0:00:30]}  a3 {[%clk 0:00:08]} 57. Nf8+ {[%clk 0:00:30]}  Kd5 {[%clk 0:00:08]} 58. Nd7 {[%clk 0:00:30]}  a2 {[%clk 0:00:07]} 59. Nb6+ {[%clk 0:00:30]}  Kc6 {[%clk 0:00:08]} 60. Rc8+ {[%clk 0:00:20]}  Kxb6 {[%clk 0:00:07]} 61. Ra8 {[%clk 0:00:20]}  b3 {[%clk 0:00:07]} 62. Ra4 {[%clk 0:00:15]}  Rb1 {[%clk 0:00:07]} 63. Ra8 {[%clk 0:00:13]}  a1=Q {[%clk 0:00:07]} 64. Rb8+ {[%clk 0:00:14]}  Kc5 {[%clk 0:00:07]} 65. Rc8+ {[%clk 0:00:14]}  Kd4 {[%clk 0:00:07]} 66. Rd8+ {[%clk 0:00:15]}  Ke3 {[%clk 0:00:08]} 67. Re8+ {[%clk 0:00:11]}  Kf2 {[%clk 0:00:08]} 0-1


[Site "https://www.chess.com"]

[Event "Titled Tuesday Blitz July 4 Late 2023"]
[White "Modric, Nesa"]
[Black "Sainz Aguirre, Ignacio"]
[WhiteFideId "922579"]
[BlackFideId "5101727"]
[WhiteElo "2252"]
[BlackElo "1943"]
[Result "1/2-1/2"]
[Round "4"]
[TimeControl "180+2"]
[Date "2023.07.04"]
[WhiteClock "0:00:08"]
[BlackClock "0:00:17"]
[Board "178"]

1. e4 {[%clk 0:03:00]}  e6 {[%clk 0:02:59]} 2. d4 {[%clk 0:03:00]}  d5 {[%clk 0:03:00]} 3. e5 {[%clk 0:03:01]}  c5 {[%clk 0:02:59]} 4. c3 {[%clk 0:03:01]}  Nc6 {[%clk 0:03:00]} 5. Nf3 {[%clk 0:03:02]}  Bd7 {[%clk 0:02:59]} 6. a3 {[%clk 0:03:02]}  c4 {[%clk 0:02:58]} 7. Nbd2 {[%clk 0:03:01]}  Na5 {[%clk 0:02:56]} 8. Rb1 {[%clk 0:02:52]}  Bc6 {[%clk 0:02:51]} 9. h4 {[%clk 0:02:49]}  Qd7 {[%clk 0:02:46]} 10. Rh3 {[%clk 0:02:47]}  Ne7 {[%clk 0:02:41]} 11. b4 {[%clk 0:02:44]}  cxb3 {[%clk 0:02:40]} 12. Nxb3 {[%clk 0:02:44]}  Ba4 {[%clk 0:02:37]} 13. Nfd2 {[%clk 0:02:44]}  Nc8 {[%clk 0:02:29]} 14. Qg4 {[%clk 0:02:26]}  Nxb3 {[%clk 0:02:23]} 15. Nxb3 {[%clk 0:02:24]}  Nb6 {[%clk 0:02:13]} 16. h5 {[%clk 0:02:12]}  h6 {[%clk 0:02:12]} 17. Nc5 {[%clk 0:01:59]}  Bxc5 {[%clk 0:02:06]} 18. dxc5 {[%clk 0:01:59]}  Nc4 {[%clk 0:02:04]} 19. Bxc4 {[%clk 0:01:48]}  dxc4 {[%clk 0:02:04]} 20. Qd4 {[%clk 0:01:19]}  Qxd4 {[%clk 0:01:52]} 21. cxd4 {[%clk 0:01:19]}  O-O-O {[%clk 0:01:51]} 22. Be3 {[%clk 0:01:17]}  Bc6 {[%clk 0:01:44]} 23. f3 {[%clk 0:01:09]}  f6 {[%clk 0:01:35]} 24. f4 {[%clk 0:00:58]}  Bxg2 {[%clk 0:01:29]} 25. Rg3 {[%clk 0:00:58]}  Be4 {[%clk 0:01:29]} 26. Rb4 {[%clk 0:00:58]}  fxe5 {[%clk 0:01:03]} 27. fxe5 {[%clk 0:00:52]}  Rd7 {[%clk 0:00:55]} 28. Rxc4 {[%clk 0:00:47]}  Rf8 {[%clk 0:00:54]} 29. a4 {[%clk 0:00:37]}  Rf5 {[%clk 0:00:50]} 30. a5 {[%clk 0:00:34]}  Rdf7 {[%clk 0:00:44]} 31. a6 {[%clk 0:00:30]}  Rxh5 {[%clk 0:00:29]} 32. axb7+ {[%clk 0:00:28]}  Kxb7 {[%clk 0:00:26]} 33. c6+ {[%clk 0:00:22]}  Bxc6 {[%clk 0:00:22]} 34. Rb4+ {[%clk 0:00:17]}  Kc7 {[%clk 0:00:22]} 35. d5 {[%clk 0:00:14]}  Bxd5 {[%clk 0:00:20]} 36. Bc5 {[%clk 0:00:12]}  Rh1+ {[%clk 0:00:18]} 37. Ke2 {[%clk 0:00:09]}  Rh2+ {[%clk 0:00:18]} 38. Ke1 {[%clk 0:00:08]}  Rh1+ {[%clk 0:00:17]} 39. Ke2 {[%clk 0:00:08]}  Rh2+ {[%clk 0:00:16]} 40. Ke1 {[%clk 0:00:08]}  Rh1+ {[%clk 0:00:17]} 1/2-1/2


[Site "https://www.chess.com"]

[Event "Titled Tuesday Blitz July 4 Late 2023"]
[White "Nakamura, Hikaru"]
[Black "Xiong, Jeffery"]
[WhiteFideId "2016192"]
[BlackFideId "2047640"]
[WhiteElo "3179"]
[BlackElo "2942"]
[Result "1-0"]
[Round "5"]
[TimeControl "180+2"]
[Date "2023.07.04"]
[WhiteClock "0:01:03"]
[BlackClock "0:01:07"]
[Board "8"]

1. e4 {[%clk 0:03:00]}  e6 {[%clk 0:02:59]} 2. d3 {[%clk 0:03:00]}  c5 {[%clk 0:02:59]} 3. Nd2 {[%clk 0:03:01]}  Nc6 {[%clk 0:02:59]} 4. g3 {[%clk 0:03:01]}  g6 {[%clk 0:02:55]} 5. Bg2 {[%clk 0:03:02]}  Bg7 {[%clk 0:02:55]} 6. f4 {[%clk 0:03:02]}  Nge7 {[%clk 0:02:55]} 7. Ngf3 {[%clk 0:03:03]}  O-O {[%clk 0:02:56]} 8. O-O {[%clk 0:03:03]}  d6 {[%clk 0:02:56]} 9. Re1 {[%clk 0:03:03]}  b5 {[%clk 0:02:55]} 10. g4 {[%clk 0:03:02]}  f5 {[%clk 0:02:49]} 11. exf5 {[%clk 0:02:59]}  exf5 {[%clk 0:02:49]} 12. g5 {[%clk 0:02:24]}  Bb7 {[%clk 0:02:45]} 13. a4 {[%clk 0:02:23]}  a6 {[%clk 0:02:42]} 14. c3 {[%clk 0:02:23]}  Kh8 {[%clk 0:02:38]} 15. Nf1 {[%clk 0:02:18]}  b4 {[%clk 0:02:37]} 16. Bd2 {[%clk 0:02:18]}  Qd7 {[%clk 0:02:34]} 17. Ne3 {[%clk 0:02:15]}  Rae8 {[%clk 0:02:22]} 18. h4 {[%clk 0:02:15]}  h5 {[%clk 0:02:02]} 19. gxh6 {[%clk 0:02:13]}  Bxh6 {[%clk 0:02:03]} 20. Ng5 {[%clk 0:02:14]}  bxc3 {[%clk 0:01:56]} 21. Bxc3+ {[%clk 0:02:14]}  Nd4 {[%clk 0:01:56]} 22. Bxb7 {[%clk 0:02:02]}  Qxb7 {[%clk 0:01:56]} 23. Nc4 {[%clk 0:02:02]}  Qd5 {[%clk 0:01:52]} 24. Ne6 {[%clk 0:01:49]}  Bg7 {[%clk 0:01:33]} 25. Nxf8 {[%clk 0:01:46]}  Nf3+ {[%clk 0:01:32]} 26. Kf2 {[%clk 0:01:43]}  Nxe1 {[%clk 0:01:33]} 27. Qxe1 {[%clk 0:01:41]}  Qxd3 {[%clk 0:01:15]} 28. Ne6 {[%clk 0:01:17]}  Bd4+ {[%clk 0:01:08]} 29. Bxd4+ {[%clk 0:01:03]}  cxd4 {[%clk 0:01:09]} 30. Nxd6 {[%clk 0:01:04]}  Rb8 {[%clk 0:01:07]} 31. Qe5+ {[%clk 0:01:03]} 1-0


[Site "https://www.chess.com"]

[Event "Titled Tuesday Blitz July 4 Late 2023"]
[White "Nihal Sarin"]
[Black "Sanal, Vahap"]
[WhiteFideId "25092340"]
[BlackFideId "6300545"]
[WhiteElo "3125"]
[BlackElo "2893"]
[Result "1-0"]
[Round "5"]
[TimeControl "180+2"]
[Date "2023.07.04"]
[WhiteClock "0:00:14"]
[BlackClock "0:00:24"]
[Board "10"]

1. e4 {[%clk 0:03:00]}  e5 {[%clk 0:02:51]} 2. f4 {[%clk 0:03:00]}  exf4 {[%clk 0:02:48]} 3. Nf3 {[%clk 0:03:00]}  Ne7 {[%clk 0:02:44]} 4. d4 {[%clk 0:02:56]}  d5 {[%clk 0:02:44]} 5. Nc3 {[%clk 0:02:53]}  dxe4 {[%clk 0:02:43]} 6. Nxe4 {[%clk 0:02:54]}  Nd5 {[%clk 0:02:43]} 7. Bd3 {[%clk 0:02:53]}  Be7 {[%clk 0:02:40]} 8. O-O {[%clk 0:02:53]}  O-O {[%clk 0:02:41]} 9. Ne5 {[%clk 0:02:30]}  Nc6 {[%clk 0:02:31]} 10. Nxc6 {[%clk 0:02:11]}  bxc6 {[%clk 0:02:31]} 11. c3 {[%clk 0:02:11]}  Bf5 {[%clk 0:02:18]} 12. Bxf4 {[%clk 0:02:08]}  Nxf4 {[%clk 0:02:17]} 13. Rxf4 {[%clk 0:02:09]}  Bg6 {[%clk 0:02:18]} 14. Nf2 {[%clk 0:02:03]}  Bd6 {[%clk 0:02:13]} 15. Rf3 {[%clk 0:02:03]}  c5 {[%clk 0:02:10]} 16. Bxg6 {[%clk 0:02:03]}  hxg6 {[%clk 0:02:11]} 17. dxc5 {[%clk 0:01:34]}  Bxc5 {[%clk 0:02:10]} 18. Qxd8 {[%clk 0:01:35]}  Raxd8 {[%clk 0:02:10]} 19. Kf1 {[%clk 0:01:36]}  a5 {[%clk 0:01:45]} 20. Rd1 {[%clk 0:01:17]}  Rxd1+ {[%clk 0:01:43]} 21. Nxd1 {[%clk 0:01:18]}  Rd8 {[%clk 0:01:44]} 22. Ke2 {[%clk 0:01:17]}  f5 {[%clk 0:01:43]} 23. Rd3 {[%clk 0:01:13]}  Re8+ {[%clk 0:01:39]} 24. Kd2 {[%clk 0:01:13]}  Bb6 {[%clk 0:01:35]} 25. Ne3 {[%clk 0:01:09]}  Kf7 {[%clk 0:01:30]} 26. Nc4 {[%clk 0:01:04]}  Kf6 {[%clk 0:01:25]} 27. Nxb6 {[%clk 0:00:55]}  cxb6 {[%clk 0:01:25]} 28. Rd6+ {[%clk 0:00:56]}  Re6 {[%clk 0:01:23]} 29. Rxe6+ {[%clk 0:00:56]}  Kxe6 {[%clk 0:01:23]} 30. a4 {[%clk 0:00:37]}  g5 {[%clk 0:01:21]} 31. h3 {[%clk 0:00:38]}  Ke5 {[%clk 0:01:19]} 32. Ke3 {[%clk 0:00:34]}  Kd5 {[%clk 0:01:19]} 33. Kd3 {[%clk 0:00:33]}  Ke5 {[%clk 0:01:20]} 34. b4 {[%clk 0:00:32]}  Kf4 {[%clk 0:01:12]} 35. c4 {[%clk 0:00:15]}  Kg3 {[%clk 0:00:29]} 36. c5 {[%clk 0:00:13]}  bxc5 {[%clk 0:00:26]} 37. bxa5 {[%clk 0:00:12]}  Kxg2 {[%clk 0:00:27]} 38. a6 {[%clk 0:00:13]}  f4 {[%clk 0:00:24]} 39. a7 {[%clk 0:00:14]} 1-0


[Site "https://www.chess.com"]

[Event "Titled Tuesday Blitz July 4 Late 2023"]
[White "Grigoriants, Sergey"]
[Black "Firouzja, Alireza"]
[WhiteFideId "4130804"]
[BlackFideId "12573981"]
[WhiteElo "2851"]
[BlackElo "3101"]
[Result "1-0"]
[Round "5"]
[TimeControl "180+2"]
[Date "2023.07.04"]
[WhiteClock "0:00:37"]
[BlackClock "0:00:00"]
[Board "11"]

1. d4 {[%clk 0:02:54]}  Nf6 {[%clk 0:02:57]} 2. c4 {[%clk 0:02:54]}  g6 {[%clk 0:02:57]} 3. f3 {[%clk 0:02:54]}  Bg7 {[%clk 0:02:57]} 4. e4 {[%clk 0:02:54]}  d6 {[%clk 0:02:57]} 5. Nc3 {[%clk 0:02:54]}  O-O {[%clk 0:02:57]} 6. Be3 {[%clk 0:02:54]}  c5 {[%clk 0:02:58]} 7. Nge2 {[%clk 0:02:50]}  Nc6 {[%clk 0:02:58]} 8. Qd2 {[%clk 0:02:50]}  e6 {[%clk 0:02:54]} 9. dxc5 {[%clk 0:02:44]}  dxc5 {[%clk 0:02:54]} 10. Qxd8 {[%clk 0:02:30]}  Rxd8 {[%clk 0:02:55]} 11. Bxc5 {[%clk 0:02:30]}  Nd7 {[%clk 0:02:54]} 12. Be3 {[%clk 0:02:26]}  Nde5 {[%clk 0:02:51]} 13. Nf4 {[%clk 0:01:57]}  Nb4 {[%clk 0:02:48]} 14. Rc1 {[%clk 0:01:51]}  g5 {[%clk 0:02:47]} 15. Nh5 {[%clk 0:01:51]}  Ned3+ {[%clk 0:02:44]} 16. Bxd3 {[%clk 0:01:51]}  Nxd3+ {[%clk 0:02:45]} 17. Ke2 {[%clk 0:01:52]}  Nxc1+ {[%clk 0:02:44]} 18. Rxc1 {[%clk 0:01:53]}  h6 {[%clk 0:02:42]} 19. h4 {[%clk 0:01:46]}  gxh4 {[%clk 0:02:25]} 20. Nxg7 {[%clk 0:01:45]}  Kxg7 {[%clk 0:02:25]} 21. Rh1 {[%clk 0:01:45]}  e5 {[%clk 0:02:20]} 22. Rxh4 {[%clk 0:01:44]}  Be6 {[%clk 0:02:20]} 23. b3 {[%clk 0:01:35]}  Rh8 {[%clk 0:02:13]} 24. f4 {[%clk 0:01:30]}  exf4 {[%clk 0:02:06]} 25. Bd4+ {[%clk 0:01:29]}  f6 {[%clk 0:02:07]} 26. Rxf4 {[%clk 0:01:30]}  Rhf8 {[%clk 0:02:06]} 27. Nd5 {[%clk 0:01:22]}  Bxd5 {[%clk 0:01:31]} 28. exd5 {[%clk 0:01:23]}  Kg6 {[%clk 0:01:31]} 29. Kd3 {[%clk 0:01:22]}  f5 {[%clk 0:01:31]} 30. c5 {[%clk 0:01:20]}  Rae8 {[%clk 0:01:20]} 31. b4 {[%clk 0:01:11]}  a6 {[%clk 0:01:10]} 32. d6 {[%clk 0:01:08]}  Re1 {[%clk 0:00:53]} 33. Kc4 {[%clk 0:01:05]}  Re2 {[%clk 0:00:36]} 34. a4 {[%clk 0:01:04]}  Rxg2 {[%clk 0:00:35]} 35. b5 {[%clk 0:01:03]}  axb5+ {[%clk 0:00:35]} 36. axb5 {[%clk 0:01:03]}  h5 {[%clk 0:00:21]} 37. c6 {[%clk 0:00:59]}  bxc6 {[%clk 0:00:20]} 38. bxc6 {[%clk 0:01:00]}  Rc2+ {[%clk 0:00:14]} 39. Kd5 {[%clk 0:00:59]}  Rc8 {[%clk 0:00:14]} 40. Bc5 {[%clk 0:00:51]}  Ra8 {[%clk 0:00:05]} 41. d7 {[%clk 0:00:47]}  Ra5 {[%clk 0:00:01]} 42. Rc4 {[%clk 0:00:37]}  Rd2+ {[%clk 0:00:01]} 43. Rd4 {[%clk 0:00:38]}  Rxd4+ {[%clk 0:00:00]} 44. Kxd4 {[%clk 0:00:37]} 1-0


[Site "https://www.chess.com"]

[Event "Titled Tuesday Blitz July 4 Late 2023"]
[White "Stoleriu, George"]
[Black "Naroditsky, Daniel"]
[WhiteFideId "1227505"]
[BlackFideId "2026961"]
[WhiteElo "2678"]
[BlackElo "3133"]
[Result "1/2-1/2"]
[Round "5"]
[TimeControl "180+2"]
[Date "2023.07.04"]
[WhiteClock "0:00:14"]
[BlackClock "0:00:02"]
[Board "16"]

1. e4 {[%clk 0:03:00]}  Nf6 {[%clk 0:02:59]} 2. e5 {[%clk 0:02:56]}  Nd5 {[%clk 0:03:00]} 3. c4 {[%clk 0:02:56]}  Nb6 {[%clk 0:02:59]} 4. d4 {[%clk 0:02:56]}  d6 {[%clk 0:02:59]} 5. f4 {[%clk 0:02:57]}  dxe5 {[%clk 0:02:53]} 6. fxe5 {[%clk 0:02:58]}  Nc6 {[%clk 0:02:54]} 7. Be3 {[%clk 0:02:57]}  Bf5 {[%clk 0:02:54]} 8. Nc3 {[%clk 0:02:57]}  e6 {[%clk 0:02:54]} 9. Be2 {[%clk 0:02:56]}  Be7 {[%clk 0:02:50]} 10. Nf3 {[%clk 0:02:56]}  O-O {[%clk 0:02:49]} 11. O-O {[%clk 0:02:55]}  f6 {[%clk 0:02:50]} 12. exf6 {[%clk 0:02:53]}  Bxf6 {[%clk 0:02:51]} 13. Qd2 {[%clk 0:02:54]}  Qe7 {[%clk 0:02:25]} 14. Rad1 {[%clk 0:02:52]}  Rad8 {[%clk 0:02:19]} 15. Qc1 {[%clk 0:02:52]}  e5 {[%clk 0:02:13]} 16. d5 {[%clk 0:02:13]}  Nd4 {[%clk 0:02:13]} 17. Nxd4 {[%clk 0:01:33]}  exd4 {[%clk 0:02:14]} 18. Bxd4 {[%clk 0:01:34]}  Bg5 {[%clk 0:02:11]} 19. Qa1 {[%clk 0:01:21]}  c5 {[%clk 0:02:00]} 20. Bf2 {[%clk 0:01:21]}  Bc2 {[%clk 0:02:00]} 21. Rde1 {[%clk 0:01:13]}  Rxf2 {[%clk 0:01:14]} 22. Rxf2 {[%clk 0:01:09]}  Be3 {[%clk 0:01:14]} 23. Rf1 {[%clk 0:01:01]}  Rf8 {[%clk 0:00:54]} 24. Qe1 {[%clk 0:00:59]}  Bxf2+ {[%clk 0:00:38]} 25. Rxf2 {[%clk 0:01:00]}  Qe3 {[%clk 0:00:38]} 26. Kf1 {[%clk 0:00:52]}  Rxf2+ {[%clk 0:00:20]} 27. Qxf2 {[%clk 0:00:53]}  Qc1+ {[%clk 0:00:21]} 28. Qe1 {[%clk 0:00:50]}  Qf4+ {[%clk 0:00:21]} 29. Qf2 {[%clk 0:00:51]}  Qc1+ {[%clk 0:00:21]} 30. Qe1 {[%clk 0:00:51]}  Qxb2 {[%clk 0:00:15]} 31. Bg4 {[%clk 0:00:41]}  Bd3+ {[%clk 0:00:14]} 32. Kg1 {[%clk 0:00:41]}  Bg6 {[%clk 0:00:12]} 33. Qe6+ {[%clk 0:00:33]}  Kh8 {[%clk 0:00:12]} 34. Qd6 {[%clk 0:00:23]}  Qa1+ {[%clk 0:00:07]} 35. Kf2 {[%clk 0:00:21]}  Qb2+ {[%clk 0:00:06]} 36. Kg1 {[%clk 0:00:20]}  Qa1+ {[%clk 0:00:06]} 37. Kf2 {[%clk 0:00:20]}  Qb2+ {[%clk 0:00:02]} 38. Kg1 {[%clk 0:00:14]} 1/2-1/2


[Site "https://www.chess.com"]

[Event "Titled Tuesday Blitz July 4 Late 2023"]
[White "Deac, Bogdan-Daniel"]
[Black "Andrej2004"]
[WhiteFideId "1226380"]
[WhiteElo "2988"]
[BlackElo "2666"]
[Result "1-0"]
[Round "5"]
[TimeControl "180+2"]
[Date "2023.07.04"]
[WhiteClock "0:00:46"]
[BlackClock "0:01:09"]
[Board "18"]

1. b3 {[%clk 0:03:00]}  b6 {[%clk 0:02:54]} 2. Bb2 {[%clk 0:03:01]}  Bb7 {[%clk 0:02:54]} 3. Nf3 {[%clk 0:03:01]}  Nf6 {[%clk 0:02:55]} 4. c4 {[%clk 0:02:59]}  g6 {[%clk 0:02:55]} 5. Bxf6 {[%clk 0:02:56]}  exf6 {[%clk 0:02:56]} 6. Nc3 {[%clk 0:02:56]}  f5 {[%clk 0:02:56]} 7. g3 {[%clk 0:02:56]}  Bg7 {[%clk 0:02:56]} 8. Bg2 {[%clk 0:02:55]}  O-O {[%clk 0:02:57]} 9. Rc1 {[%clk 0:02:56]}  c5 {[%clk 0:02:56]} 10. O-O {[%clk 0:02:56]}  Nc6 {[%clk 0:02:54]} 11. Ne1 {[%clk 0:02:51]}  Rb8 {[%clk 0:02:51]} 12. Nc2 {[%clk 0:02:51]}  Qf6 {[%clk 0:02:30]} 13. Ne3 {[%clk 0:02:45]}  Rfe8 {[%clk 0:02:29]} 14. Ned5 {[%clk 0:02:44]}  Qd6 {[%clk 0:02:29]} 15. Nb5 {[%clk 0:02:39]}  Qf8 {[%clk 0:02:20]} 16. e3 {[%clk 0:02:39]}  Ne7 {[%clk 0:02:08]} 17. Nd6 {[%clk 0:02:31]}  Nxd5 {[%clk 0:01:57]} 18. Nxe8 {[%clk 0:02:29]}  Nxe3 {[%clk 0:01:53]} 19. dxe3 {[%clk 0:02:24]}  Qxe8 {[%clk 0:01:53]} 20. Bxb7 {[%clk 0:02:24]}  Rxb7 {[%clk 0:01:54]} 21. Qd5 {[%clk 0:02:24]}  Rc7 {[%clk 0:01:54]} 22. Rcd1 {[%clk 0:02:21]}  Bf8 {[%clk 0:01:49]} 23. Rfe1 {[%clk 0:01:31]}  Qe6 {[%clk 0:01:49]} 24. e4 {[%clk 0:01:28]}  fxe4 {[%clk 0:01:49]} 25. Rxe4 {[%clk 0:01:27]}  Qxd5 {[%clk 0:01:48]} 26. Rxd5 {[%clk 0:01:28]}  d6 {[%clk 0:01:33]} 27. Re8 {[%clk 0:01:25]}  Kg7 {[%clk 0:01:33]} 28. g4 {[%clk 0:01:25]}  h6 {[%clk 0:01:32]} 29. f4 {[%clk 0:01:24]}  Be7 {[%clk 0:01:31]} 30. Kg2 {[%clk 0:01:20]}  Rd7 {[%clk 0:01:29]} 31. Kg3 {[%clk 0:01:18]}  Bf6 {[%clk 0:01:30]} 32. h4 {[%clk 0:01:15]}  Bd4 {[%clk 0:01:30]} 33. g5 {[%clk 0:01:15]}  hxg5 {[%clk 0:01:25]} 34. hxg5 {[%clk 0:01:16]}  f6 {[%clk 0:01:20]} 35. Kg4 {[%clk 0:01:03]}  f5+ {[%clk 0:01:19]} 36. Kf3 {[%clk 0:01:00]}  Kf7 {[%clk 0:01:19]} 37. Re2 {[%clk 0:00:47]}  Re7 {[%clk 0:01:09]} 38. Rxd6 {[%clk 0:00:46]} 1-0


[Site "https://www.chess.com"]

[Event "Titled Tuesday Blitz July 4 Late 2023"]
[White "Makarian, Rudik"]
[Black "Guerra Tulcan, Lenin"]
[WhiteFideId "44105681"]
[BlackFideId "3601382"]
[WhiteElo "2950"]
[BlackElo "2658"]
[Result "1-0"]
[Round "5"]
[TimeControl "180+2"]
[Date "2023.07.04"]
[WhiteClock "0:02:15"]
[BlackClock "0:00:48"]
[Board "20"]

1. d4 {[%clk 0:02:59]}  Nf6 {[%clk 0:03:00]} 2. c4 {[%clk 0:03:00]}  c5 {[%clk 0:03:00]} 3. d5 {[%clk 0:03:00]}  b5 {[%clk 0:03:00]} 4. cxb5 {[%clk 0:03:01]}  a6 {[%clk 0:03:01]} 5. e3 {[%clk 0:03:02]}  d6 {[%clk 0:03:00]} 6. Nc3 {[%clk 0:03:03]}  g6 {[%clk 0:03:00]} 7. Nf3 {[%clk 0:03:03]}  Bg7 {[%clk 0:03:00]} 8. a4 {[%clk 0:03:04]}  O-O {[%clk 0:03:00]} 9. Ra3 {[%clk 0:03:04]}  axb5 {[%clk 0:03:01]} 10. Bxb5 {[%clk 0:03:05]}  Ba6 {[%clk 0:02:58]} 11. O-O {[%clk 0:03:05]}  Bxb5 {[%clk 0:02:57]} 12. Nxb5 {[%clk 0:03:05]}  Nbd7 {[%clk 0:02:57]} 13. Re1 {[%clk 0:02:58]}  Nb6 {[%clk 0:02:48]} 14. e4 {[%clk 0:02:58]}  Nfd7 {[%clk 0:02:45]} 15. b3 {[%clk 0:02:48]}  Qb8 {[%clk 0:02:35]} 16. Bg5 {[%clk 0:02:38]}  Re8 {[%clk 0:02:29]} 17. Qd2 {[%clk 0:02:27]}  c4 {[%clk 0:02:24]} 18. a5 {[%clk 0:02:24]}  cxb3 {[%clk 0:01:59]} 19. axb6 {[%clk 0:02:20]}  Qxb6 {[%clk 0:01:59]} 20. Rxb3 {[%clk 0:02:18]}  Ra5 {[%clk 0:00:54]} 21. Nbd4 {[%clk 0:02:16]}  Qa7 {[%clk 0:00:48]} 22. Nc6 {[%clk 0:02:15]} 1-0


[Site "https://www.chess.com"]

[Event "Titled Tuesday Blitz July 4 Late 2023"]
[White "Erdogmus, Yagiz Kaan"]
[Black "Subelj, Jan"]
[WhiteFideId "44599790"]
[BlackFideId "14618583"]
[WhiteElo "2880"]
[BlackElo "2594"]
[Result "0-1"]
[Round "5"]
[TimeControl "180+2"]
[Date "2023.07.04"]
[WhiteClock "0:00:00"]
[BlackClock "0:00:47"]
[Board "26"]

1. e4 {[%clk 0:03:00]}  d6 {[%clk 0:02:56]} 2. d4 {[%clk 0:02:58]}  Nf6 {[%clk 0:02:56]} 3. Nc3 {[%clk 0:02:57]}  e5 {[%clk 0:02:56]} 4. Nf3 {[%clk 0:02:56]}  Nbd7 {[%clk 0:02:56]} 5. Bc4 {[%clk 0:02:55]}  Be7 {[%clk 0:02:56]} 6. O-O {[%clk 0:02:55]}  O-O {[%clk 0:02:56]} 7. Re1 {[%clk 0:02:52]}  c6 {[%clk 0:02:55]} 8. a4 {[%clk 0:02:52]}  Qc7 {[%clk 0:02:54]} 9. h3 {[%clk 0:02:49]}  b6 {[%clk 0:02:48]} 10. Be3 {[%clk 0:02:42]}  Bb7 {[%clk 0:02:47]} 11. Ba2 {[%clk 0:02:34]}  a6 {[%clk 0:02:46]} 12. Nh4 {[%clk 0:02:32]}  Rfe8 {[%clk 0:02:45]} 13. Nf5 {[%clk 0:02:31]}  Bf8 {[%clk 0:02:45]} 14. g4 {[%clk 0:02:29]}  exd4 {[%clk 0:02:29]} 15. Bxd4 {[%clk 0:02:24]}  g6 {[%clk 0:02:22]} 16. g5 {[%clk 0:02:15]}  Nh5 {[%clk 0:02:12]} 17. Ng3 {[%clk 0:01:26]}  Nxg3 {[%clk 0:01:59]} 18. fxg3 {[%clk 0:01:27]}  Ne5 {[%clk 0:01:56]} 19. Rf1 {[%clk 0:01:26]}  Re7 {[%clk 0:01:48]} 20. Rf6 {[%clk 0:01:05]}  Bg7 {[%clk 0:01:46]} 21. Qe2 {[%clk 0:00:52]}  Bc8 {[%clk 0:01:31]} 22. Bxe5 {[%clk 0:00:37]}  dxe5 {[%clk 0:01:27]} 23. Rxf7 {[%clk 0:00:37]}  Rxf7 {[%clk 0:00:58]} 24. Rf1 {[%clk 0:00:34]}  Kh8 {[%clk 0:00:59]} 25. Rxf7 {[%clk 0:00:32]}  Qd6 {[%clk 0:01:00]} 26. h4 {[%clk 0:00:17]}  Be6 {[%clk 0:00:55]} 27. Bxe6 {[%clk 0:00:16]}  Qxe6 {[%clk 0:00:56]} 28. Qf2 {[%clk 0:00:15]}  b5 {[%clk 0:00:56]} 29. axb5 {[%clk 0:00:14]}  axb5 {[%clk 0:00:57]} 30. Rb7 {[%clk 0:00:14]}  Rf8 {[%clk 0:00:56]} 31. Qa7 {[%clk 0:00:08]}  Qh3 {[%clk 0:00:55]} 32. Rf7 {[%clk 0:00:05]}  Qxg3+ {[%clk 0:00:55]} 33. Kf1 {[%clk 0:00:05]}  Qh3+ {[%clk 0:00:52]} 34. Ke2 {[%clk 0:00:05]}  Qg2+ {[%clk 0:00:50]} 35. Kd1 {[%clk 0:00:03]}  Qh1+ {[%clk 0:00:48]} 36. Kd2 {[%clk 0:00:00]}  Rd8+ {[%clk 0:00:47]} 0-1


[Site "https://www.chess.com"]